{"text_format":"3","workbook":"xlsx","n_sheets":2,"sheets":["KASVUTIEDOT","KASVUKAAVIO"],"not_rendered":{"charts":1,"defined_names":3},"read":"whole","date_system":"1900"}

{"sheet":"KASVUTIEDOT","index":0,"n_rows":23,"n_cols":8,"rows_kept":23,"merged":[[0,1,0,7],[1,2,1,7]]}
[null,"Vauvan kasvu "]
[null,"Vauvan nimi:","Nimi"]
[null,"Ikä","Kiloa","Grammaa","Paino (kg)","Paino\nProsenttipiste","Pituus (cm)","Pituus\nProsenttipiste"]
[null,"Syntyessä",7,null,{"$f":"IF(COUNT(Tiedot[[#This Row],[Kiloa]:[Grammaa]])>0,Tiedot[[#This Row],[Kiloa]]+(Tiedot[[#This Row],[Grammaa]]/16),NA())","v":7},40,19.5,70]
[null,"4 päivää",6,8,{"$f":"IF(COUNT(Tiedot[[#This Row],[Kiloa]:[Grammaa]])>0,Tiedot[[#This Row],[Kiloa]]+(Tiedot[[#This Row],[Grammaa]]/16),NA())","v":6.5},41,19.5,70]
[null,"7 päivää",6,4.8,{"$f":"IF(COUNT(Tiedot[[#This Row],[Kiloa]:[Grammaa]])>0,Tiedot[[#This Row],[Kiloa]]+(Tiedot[[#This Row],[Grammaa]]/16),NA())","v":6.3},42,20,71]
[null,"11 päivää",6,9.6,{"$f":"IF(COUNT(Tiedot[[#This Row],[Kiloa]:[Grammaa]])>0,Tiedot[[#This Row],[Kiloa]]+(Tiedot[[#This Row],[Grammaa]]/16),NA())","v":6.6},43,20,71]
[null,"14 päivää",7,null,{"$f":"IF(COUNT(Tiedot[[#This Row],[Kiloa]:[Grammaa]])>0,Tiedot[[#This Row],[Kiloa]]+(Tiedot[[#This Row],[Grammaa]]/16),NA())","v":7},44,20,71]
[null,"18 päivää",7,12,{"$f":"IF(COUNT(Tiedot[[#This Row],[Kiloa]:[Grammaa]])>0,Tiedot[[#This Row],[Kiloa]]+(Tiedot[[#This Row],[Grammaa]]/16),NA())","v":7.75},45,21,72]
[null,"21 päivää",8,8,{"$f":"IF(COUNT(Tiedot[[#This Row],[Kiloa]:[Grammaa]])>0,Tiedot[[#This Row],[Kiloa]]+(Tiedot[[#This Row],[Grammaa]]/16),NA())","v":8.5},46,21,72]
[null,"25 päivää",null,null,{"$f":"IF(COUNT(Tiedot[[#This Row],[Kiloa]:[Grammaa]])>0,Tiedot[[#This Row],[Kiloa]]+(Tiedot[[#This Row],[Grammaa]]/16),NA())","v":{"$error":"#N/A"}}]
[null,"28 päivää",null,null,{"$f":"IF(COUNT(Tiedot[[#This Row],[Kiloa]:[Grammaa]])>0,Tiedot[[#This Row],[Kiloa]]+(Tiedot[[#This Row],[Grammaa]]/16),NA())","v":{"$error":"#N/A"}}]
[null,"5 viikkoa",null,null,{"$f":"IF(COUNT(Tiedot[[#This Row],[Kiloa]:[Grammaa]])>0,Tiedot[[#This Row],[Kiloa]]+(Tiedot[[#This Row],[Grammaa]]/16),NA())","v":{"$error":"#N/A"}}]
[null,"6 viikkoa",null,null,{"$f":"IF(COUNT(Tiedot[[#This Row],[Kiloa]:[Grammaa]])>0,Tiedot[[#This Row],[Kiloa]]+(Tiedot[[#This Row],[Grammaa]]/16),NA())","v":{"$error":"#N/A"}}]
[null,"7 viikkoa",null,null,{"$f":"IF(COUNT(Tiedot[[#This Row],[Kiloa]:[Grammaa]])>0,Tiedot[[#This Row],[Kiloa]]+(Tiedot[[#This Row],[Grammaa]]/16),NA())","v":{"$error":"#N/A"}}]
[null,"2 kuukautta",null,null,{"$f":"IF(COUNT(Tiedot[[#This Row],[Kiloa]:[Grammaa]])>0,Tiedot[[#This Row],[Kiloa]]+(Tiedot[[#This Row],[Grammaa]]/16),NA())","v":{"$error":"#N/A"}}]
[null,"3 kuukautta",null,null,{"$f":"IF(COUNT(Tiedot[[#This Row],[Kiloa]:[Grammaa]])>0,Tiedot[[#This Row],[Kiloa]]+(Tiedot[[#This Row],[Grammaa]]/16),NA())","v":{"$error":"#N/A"}}]
[null,"6 kuukautta",null,null,{"$f":"IF(COUNT(Tiedot[[#This Row],[Kiloa]:[Grammaa]])>0,Tiedot[[#This Row],[Kiloa]]+(Tiedot[[#This Row],[Grammaa]]/16),NA())","v":{"$error":"#N/A"}}]
[null,"9 kuukautta",null,null,{"$f":"IF(COUNT(Tiedot[[#This Row],[Kiloa]:[Grammaa]])>0,Tiedot[[#This Row],[Kiloa]]+(Tiedot[[#This Row],[Grammaa]]/16),NA())","v":{"$error":"#N/A"}}]
[null,"12 kuukautta",null,null,{"$f":"IF(COUNT(Tiedot[[#This Row],[Kiloa]:[Grammaa]])>0,Tiedot[[#This Row],[Kiloa]]+(Tiedot[[#This Row],[Grammaa]]/16),NA())","v":{"$error":"#N/A"}}]
[null,"18 kuukautta",null,null,{"$f":"IF(COUNT(Tiedot[[#This Row],[Kiloa]:[Grammaa]])>0,Tiedot[[#This Row],[Kiloa]]+(Tiedot[[#This Row],[Grammaa]]/16),NA())","v":{"$error":"#N/A"}}]
[null,"24 kuukautta",null,null,{"$f":"IF(COUNT(Tiedot[[#This Row],[Kiloa]:[Grammaa]])>0,Tiedot[[#This Row],[Kiloa]]+(Tiedot[[#This Row],[Grammaa]]/16),NA())","v":{"$error":"#N/A"}}]
[null,"36 kuukautta",null,null,{"$f":"IF(COUNT(Tiedot[[#This Row],[Kiloa]:[Grammaa]])>0,Tiedot[[#This Row],[Kiloa]]+(Tiedot[[#This Row],[Grammaa]]/16),NA())","v":{"$error":"#N/A"}}]

{"sheet":"KASVUKAAVIO","index":1,"n_rows":1,"n_cols":2,"rows_kept":1,"merged":[[0,1,1,1]]}
[null,"VAUVAN KASVUKAAVIO"]